bitfinex-derivatives/quotes_SOLF0:USTF0_20240923
["timestamp","ask_amount","ask_price","bid_price","bid_amount"]
[1727094593618,1.3482,143.46,143.39,11.72]
[1727094593813,1.3482,143.46,143.4,7.5675792]
[1727094594017,1.3482,143.46,143.39,11.72]
[1727094594219,1.3482,143.46,143.4,7.56769187]
[1727094594421,1.3482,143.46,143.39,11.72]
[1727094594619,1.3482,143.46,143.4,7.56784454]
[1727094594826,1.3482,143.46,143.44,3.4862]
[1727094597024,1.3732,143.51,143.43,11.72]
[1727094597226,1.3732,143.51,143.38,6.9753]
[1727094597422,13.0521,143.5,143.4,11.72]
[1727094597733,3.4854,143.48,143.44,3.4861]
[1727094598433,10.95828971,143.47,143.44,3.4861]
[1727094599139,7.5,143.47,143.44,3.4861]
[1727094599533,11.04547935,143.47,143.44,3.4861]
[1727094599736,14.53107935,143.47,143.43,3.4864]
[1727094599938,14.53107935,143.47,143.42,7.5]
[1727094600838,14.53107935,143.47,143.44,3.4862]
[1727094601037,7.5,143.45,143.4,7.5]
[1727094601544,7.5,143.44,143.41,7.56730311]
[1727094601943,7.5,143.45,143.41,15.06730311]
[1727094603643,10.9861,143.45,143.42,3.4866]
[1727094604140,3.4864,143.44,143.41,11.05410311]
[1727094604340,7.5,143.43,143.41,7.56730311]
[1727094604537,7.5,143.42,143.41,7.56730311]
[1727094604936,3.43481369,143.42,143.41,7.56730311]
[1727094605137,7.5,143.42,143.41,7.56730311]
[1727094605339,11.03770464,143.42,143.41,7.56730311]
[1727094605739,14.52440464,143.42,143.41,7.56730311]
[1727094606835,10.9866,143.43,143.41,7.56730311]
[1727094607148,10.3526,143.45,143.41,7.56730311]
[1727094607338,10.3526,143.45,143.43,3.4864]
[1727094607829,10.3526,143.45,143.41,7.56730311]
[1727094608441,6.3388,143.45,143.41,7.56730311]
[1727094608644,7.5,143.43,143.41,7.56730311]
[1727094608837,7.5,143.42,143.41,7.56730311]
[1727094609040,10.9867,143.42,143.41,5.35430311]
[1727094609241,10.9867,143.42,143.41,3.14130311]
[1727094610246,10.9867,143.42,143.38,4.67813892]
[1727094610247,3.4871,143.41,143.38,4.67813892]
[1727094610544,7.5,143.4,143.38,4.67813892]
[1727094610737,7.5,143.4,143.37,3.4878]
[1727094611438,7.5,143.4,143.38,3.4877]
[1727094612540,7.5,143.4,143.39,3.4875]
[1727094613047,3.4868,143.42,143.39,3.4875]
[1727094613348,7.5,143.4,143.31,19.09881406]
[1727094613537,7.5,143.4,143.34,7.5]
[1727094613841,10.9873,143.4,143.37,3.4877]
[1727094614043,7.5,143.4,143.34,7.5]
[1727094614245,7.5,143.4,143.39,3.4875]
[1727094614742,7.5,143.41,143.4,3.4872]
[1727094615042,7.5,143.42,143.4,3.4872]
[1727094615443,7.5,143.42,143.39,3.4872]
[1727094616243,10.9869,143.42,143.39,3.4872]
[1727094617040,7.5,143.41,143.39,3.4872]
[1727094617546,7.5,143.42,143.37,7.5]
[1727094618048,7.5,143.41,143.37,7.5]
[1727094618650,7.5,143.41,143.4,3.4872]
[1727094618945,3.4866,143.43,143.4,3.4872]
[1727094619244,7.5,143.42,143.37,7.5]
[1727094619443,7.5,143.42,143.41,3.487]
[1727094623038,3.4863,143.44,143.41,3.487]
[1727094623242,7.5,143.43,143.41,3.487]
[1727094626647,24.5,143.42,143.33,8.69208222]
[1727094626852,7.5,143.34,143.29,19.61328456]
[1727094627156,7.5,143.34,143.27,4.67463448]
[1727094627157,7.5,143.3,143.27,4.67463448]
[1727094627347,4.9177962,143.42,143.2,3.43064859]
[1727094627348,7.5,143.27,143.21,19.60917129]
[1727094627651,7.5,143.27,143.22,22.90549019]
[1727094627652,7.5,143.25,143.22,22.90549019]
[1727094627851,7.5,143.25,143.21,7.5]
[1727094628744,7.5,143.25,143.23,3.4912]
[1727094628948,7.5,143.27,143.21,7.5]
[1727094630252,7.5,143.29,143.21,11.73]
[1727094630453,11.73,143.31,143.21,13.1867]
[1727094630952,3.4897,143.3,143.21,13.1867]
[1727094631758,3.4897,143.3,143.26,3.4905]
[1727094632954,11.73,143.29,143.21,1.4567]
[1727094633151,11.73,143.27,143.21,1.4567]
[1727094633355,11.73,143.27,143.2,2.7907]
[1727094633960,11.73,143.29,143.2,14.5207]
[1727094634158,4.86825867,143.33,143.21,11.73]
[1727094634159,11.73,143.31,143.21,11.73]
[1727094634859,11.73,143.31,143.27,3.4902]
[1727094635760,3.4897,143.3,143.27,3.4902]
[1727094635955,11.73,143.31,143.21,11.73]
[1727094636553,3.49,143.29,143.25,3.4907]
[1727094636949,3.49,143.29,143.21,11.73]
[1727094637156,3.49,143.29,143.26,3.4905]
[1727094638359,3.4897,143.3,143.27,3.4904]
[1727094638961,15.2195,143.31,143.27,3.4904]
[1727094640058,4.86825867,143.33,143.28,3.49]
[1727094640059,3.4894,143.32,143.28,3.49]
[1727094640260,3.4894,143.32,143.23,11.73]
[1727094640761,3.4894,143.32,143.28,3.49]
[1727094641659,11.73,143.31,143.22,13.1063]
[1727094642055,1.3797,143.33,143.22,13.1063]
[1727094642358,11.73,143.29,143.25,3.4908]
[1727094643466,3.4903,143.28,143.24,3.491]
[1727094645267,3.4903,143.28,143.25,3.4909]
[1727094646666,3.49,143.29,143.26,3.4905]
[1727094648062,11.73,143.32,143.22,1.3763]
[1727094648662,15.2193,143.32,143.29,3.4898]
[1727094649263,15.2193,143.32,143.22,1.3763]
[1727094649463,3.4895,143.31,143.28,3.49]
[1727094652574,15.2193,143.32,143.29,3.4899]
[1727094652775,15.2193,143.32,143.22,1.3763]
[1727094652975,11.73,143.32,143.22,1.3763]
[1727094653272,3.4895,143.31,143.28,3.49]
[1727094655274,15.2192,143.32,143.29,3.4899]
[1727094655480,11.73,143.32,143.23,11.73]
[1727094655670,11.73,143.32,143.3,3.4895]
[1727094656173,3.4891,143.33,143.3,3.4895]
[1727094657975,11.73,143.34,143.26,11.73]
[1727094658185,11.73,143.34,143.27,2.8041]
[1727094658583,11.73,143.34,143.31,3.4892]
[1727094659277,15.2186,143.35,143.32,3.4891]
[1727094659781,11.73,143.35,143.27,2.8041]
[1727094660372,15.2185,143.35,143.32,3.489]
[1727094661790,11.73,143.35,143.27,2.8041]
[1727094661990,11.73,143.34,143.27,2.8041]
[1727094662385,7.5,143.31,143.27,2.8041]
[1727094663189,7.5,143.3,143.27,2.8041]
[1727094663895,7.5,143.3,143.28,3.4901]
[1727094664088,7.5,143.29,143.22,1.3763]
[1727094664288,11.73,143.3,143.22,4.0963]
[1727094664487,3.4899,143.29,143.26,3.4905]
[1727094664889,11.73,143.3,143.22,4.0963]
[1727094665186,15.2198,143.3,143.27,3.4902]
[1727094667894,11.73,143.3,143.28,3.4901]
[1727094668990,11.73,143.3,143.22,4.0963]
[1727094669600,11.73,143.3,143.28,3.4901]
[1727094670301,15.2197,143.3,143.22,4.0963]
[1727094670600,11.73,143.3,143.22,4.0963]
[1727094673701,3.4898,143.3,143.28,3.4901]
[1727094675602,3.4895,143.31,143.28,3.4901]
[1727094676106,15.14047926,143.32,143.22,4.0963]
[1727094676404,11.73,143.29,143.22,2.72]
[1727094676803,3.4903,143.28,143.25,3.4907]
[1727094677302,6.94710818,143.28,143.25,3.4907]
[1727094678425,6.94710818,143.28,143.22,2.72]
[1727094678426,11.73,143.29,143.22,2.72]
[1727094679001,15.22,143.29,143.22,2.72]
[1727094679404,11.73,143.29,143.22,2.72]
[1727094680402,15.2199,143.29,143.27,3.4902]
[1727094680814,11.73,143.31,143.22,2.72]
[1727094681006,11.73,143.31,143.23,11.73]
[1727094681305,3.4894,143.32,143.23,11.73]
[1727094681803,15.2191,143.33,143.23,18.7126]
[1727094682309,15.2191,143.33,143.24,1.4538]
[1727094682611,15.2191,143.33,143.3,3.4895]
[1727094682908,15.2191,143.33,143.24,1.4538]
[1727094683506,15.2191,143.33,143.31,3.4894]
[1727094684305,11.73,143.33,143.31,3.4894]
[1727094685107,18.63048852,143.32,143.29,3.4898]
[1727094685411,11.73,143.3,143.24,1.4538]
[1727094686299,11.73,143.3,143.28,3.49]
[1727094686806,15.2197,143.3,143.27,3.4903]
[1727094687205,11.73,143.28,143.22,2.72]
[1727094687509,11.73,143.24,143.19,80.06639527]
[1727094688010,11.73,143.24,143.22,3.4914]
[1727094688212,11.73,143.24,143.19,80.06639527]
[1727094689008,11.73,143.26,143.19,80.06639527]
[1727094689807,11.73,143.26,143.25,3.4909]
[1727094690207,11.73,143.26,143.19,80.06639527]
[1727094690709,11.73,143.26,143.24,3.491]
[1727094691303,11.73,143.28,143.19,91.79639527]
[1727094692208,11.73,143.28,143.27,3.4904]
[1727094692405,11.73,143.28,143.19,91.79639527]
[1727094692809,11.73,143.28,143.26,3.4905]
[1727094693618,11.73,143.28,143.27,3.4904]
[1727094694713,11.73,143.32,143.21,11.73]
[1727094694915,11.73,143.32,143.21,14.5122]
[1727094695110,15.2193,143.32,143.29,3.4898]
[1727094695314,11.73,143.32,143.29,3.4898]
[1727094695920,15.2193,143.32,143.29,3.4898]
[1727094696109,11.73,143.32,143.3,3.4896]
[1727094696414,11.73,143.32,143.23,11.73]
[1727094696614,11.73,143.32,143.3,3.4895]
[1727094697013,11.73,143.32,143.24,1.429]
[1727094697819,11.73,143.3,143.24,1.429]
[1727094698819,11.73,143.3,143.28,3.4901]
[1727094700209,11.73,143.32,143.24,1.429]
[1727094700819,15.2193,143.32,143.29,3.4897]
[1727094702130,15.2193,143.32,143.28,3.49]
[1727094702421,3.4894,143.31,143.28,3.49]
[1727094703121,15.2197,143.3,143.27,3.4903]
[1727094703322,11.73,143.3,143.24,1.429]
[1727094704117,11.73,143.32,143.24,1.429]
[1727094704317,7.5,143.3,143.25,7.5]
[1727094704517,7.5,143.3,143.29,3.4898]
[1727094706219,7.5,143.3,143.28,3.49]
[1727094706420,7.5,143.29,143.28,3.49]
[1727094707122,7.5,143.29,143.27,3.4902]
[1727094708719,10.9899,143.29,143.27,3.4902]
[1727094709114,7.5,143.29,143.27,3.4902]
[1727094709316,7.5,143.29,143.21,9.7657]
[1727094709317,7.5,143.29,143.21,1.4235]
[1727094709520,7.5,143.25,143.19,7.5]
[1727094709932,7.5,143.25,143.23,3.4912]
[1727094710232,7.5,143.25,143.18,1.4643]
[1727094710425,7.5,143.22,143.21,3.4919]
[1727094710728,7.5,143.24,143.19,7.5]
[1727094711117,7.5,143.25,143.2,87.63138103]
[1727094711326,7.5,143.25,143.24,3.491]
[1727094711731,6.411,143.27,143.24,3.491]
[1727094711921,6.411,143.27,143.25,3.4909]
[1727094712122,6.411,143.27,143.2,87.63138103]
[1727094712123,7.5,143.26,143.2,87.63138103]
[1727094712318,15.2308,143.26,143.2,80.13138103]
[1727094712835,15.2308,143.26,143.23,3.4912]
[1727094715431,15.2308,143.26,143.24,3.4911]
[1727094716031,11.74,143.26,143.24,3.4911]
[1727094717130,1.4744,143.27,143.25,3.4909]
[1727094718135,1.4744,143.27,143.26,3.4906]
[1727094718530,11.74,143.28,143.26,3.4906]
[1727094719133,15.2302,143.28,143.26,3.4906]
[1727094721438,3.4904,143.27,143.19,11.74]
[1727094721640,11.74,143.28,143.19,11.74]
[1727094722742,3.4905,143.27,143.24,3.4909]
[1727094722944,11.74,143.28,143.19,11.74]
[1727094723128,11.74,143.3,143.2,11.74]
[1727094723534,11.74,143.3,143.21,6.9834]
[1727094723745,13.0843,143.32,143.22,11.74]
[1727094724143,16.5737,143.32,143.29,3.4898]
[1727094725742,13.0843,143.32,143.3,3.4896]
[1727094726044,1.3443,143.32,143.24,16.55167525]
[1727094726236,1.3443,143.32,143.3,3.4895]
[1727094732340,7.5,143.31,143.3,3.4895]
[1727094737051,7.5,143.31,143.25,7.5]
[1727094737244,7.5,143.32,143.28,7.5]
[1727094737445,4.1662,143.39,143.28,7.5]
[1727094737752,7.5,143.33,143.32,3.489]
[1727094740148,7.5,143.33,143.28,7.5]
[1727094740350,7.5,143.29,143.24,1.3971]
[1727094740653,7.5,143.27,143.24,1.3971]
[1727094740954,7.5,143.27,143.26,3.4906]
[1727094741254,7.5,143.27,143.24,3.4911]
[1727094741551,7.5,143.25,143.24,3.4911]
[1727094741946,7.5,143.26,143.25,3.4907]
[1727094743356,7.5,143.26,143.24,3.4909]
[1727094743554,7.5,143.25,143.24,3.4909]
[1727094745256,7.5,143.26,143.25,3.4908]
[1727094745853,7.5,143.26,143.24,3.491]
[1727094748554,7.5,143.26,143.25,3.4909]
[1727094749264,7.5,143.27,143.26,3.4905]
[1727094750557,7.5,143.28,143.27,3.4902]
[1727094750958,1.4075,143.32,143.19,4.1732]
[1727094750959,7.5,143.3,143.25,7.5]
[1727094751164,7.5,143.31,143.25,7.5]
[1727094751764,7.5,143.31,143.27,7.5]
[1727094751958,7.5,143.31,143.3,3.4897]
[1727094752464,7.5,143.31,143.25,2.9295]
[1727094752670,7.5,143.31,143.29,3.4898]
[1727094755481,7.5,143.31,143.3,3.4897]
[1727094755782,7.5,143.31,143.25,10.4295]
[1727094755974,7.5,143.31,143.29,3.4897]
[1727094756567,7.5,143.31,143.3,3.4897]
[1727094757872,7.5,143.31,143.27,7.5]
[1727094758671,7.5,143.31,143.3,3.4897]
[1727094759481,7.5,143.31,143.29,3.4898]
[1727094759683,7.5,143.3,143.25,2.9295]
[1727094759874,7.5,143.28,143.25,2.9295]
[1727094760076,7.5,143.28,143.27,3.4903]
[1727094762577,7.5,143.29,143.28,3.4901]
[1727094763084,3.4899,143.3,143.29,3.4898]
[1727094763085,7.5,143.3,143.29,3.4898]
[1727094764388,7.5,143.3,143.25,2.9295]
[1727094764389,7.5,143.3,143.28,3.49]
[1727094767381,7.5,143.3,143.29,3.4899]
[1727094768189,7.5,143.3,143.28,3.49]
[1727094771183,7.5,143.3,143.29,3.4899]
[1727094771993,7.5,143.3,143.28,3.4901]
[1727094772684,7.5,143.29,143.22,7.5]
[1727094772891,7.5,143.27,143.22,7.5]
[1727094773286,7.5,143.27,143.26,3.4906]
[1727094774284,7.5,143.27,143.2,9.8358]
[1727094774285,7.5,143.27,143.25,3.4908]
[1727094774592,7.5,143.26,143.25,3.4908]
[1727094775587,7.5,143.27,143.26,3.4905]
[1727094777689,1.4114,143.3,143.27,3.4902]
[1727094777889,7.5,143.28,143.27,3.4902]
[1727094778294,7.5,143.28,143.26,3.4905]
[1727094778689,10.9902,143.28,143.26,3.4905]
[1727094778887,1.4114,143.3,143.2,2.8519]
[1727094779099,7.5,143.25,143.2,10.3519]
[1727094779685,1.4114,143.3,143.2,2.8519]
[1727094779890,7.5,143.23,143.2,1.4]
[1727094780092,7.5,143.23,143.17,7.5]
[1727094780605,7.5,143.23,143.18,7.5]
[1727094780791,7.5,143.23,143.22,3.4916]
[1727094782599,7.5,143.24,143.23,3.4912]
[1727094783599,1.4114,143.3,143.23,7.5]
[1727094783906,8.9114,143.3,143.25,7.5]
[1727094784195,7.5,143.3,143.25,7.5]
[1727094784404,7.5,143.3,143.24,7.5]
[1727094784797,10.9897,143.3,143.24,7.5]
[1727094785600,10.9897,143.3,143.27,3.4902]
[1727094786004,10.9897,143.3,143.24,7.5]
[1727094786301,11.73,143.33,143.28,3.49]
[1727094786900,3.4893,143.32,143.28,3.49]
[1727094787100,11.73,143.33,143.28,3.49]
[1727094787695,3.4895,143.31,143.27,3.4903]
[1727094788002,6.89997926,143.31,143.27,3.4903]
[1727094788193,6.89997926,143.31,143.24,11.73]
[1727094788395,6.89997926,143.31,143.27,3.4902]
[1727094788598,3.4897,143.3,143.27,3.4902]
[1727094789509,11.73,143.31,143.22,1.3341]
[1727094789697,15.29515189,143.31,143.22,1.3341]
[1727094789895,3.4899,143.29,143.22,1.3341]
[1727094790498,3.4899,143.29,143.27,3.4903]
[1727094792003,3.4898,143.3,143.28,3.4901]
[1727094792203,11.73,143.33,143.23,11.73]
[1727094792502,3.4694853,143.32,143.23,11.73]
[1727094792706,3.4895,143.31,143.28,3.4899]
[1727094792907,3.4694853,143.32,143.23,11.73]
[1727094793308,3.4894,143.32,143.29,3.4899]
[1727094793806,15.219,143.33,143.3,3.4895]
[1727094796112,3.53802045,143.32,143.29,3.4898]
[1727094796603,7.02732045,143.32,143.29,3.4898]
[1727094797706,15.219,143.33,143.3,3.4895]
[1727094797904,3.489,143.33,143.3,3.4895]
[1727094798409,1.3302,143.34,143.32,3.4891]
[1727094802908,3.4886,143.35,143.33,3.4889]
[1727094803108,3.4881,143.37,143.29,11.73]
[1727094804001,13.1163,143.38,143.29,11.73]
[1727094804208,16.6041,143.38,143.29,11.73]
[1727094804709,16.6041,143.38,143.35,3.4884]
[1727094805609,3.47530214,143.48,143.33,11.73]
[1727094805812,11.73,143.43,143.33,11.73]
[1727094805999,11.73,143.43,143.33,14.565]
[1727094806409,7.51,143.4,143.35,7.51]
[1727094808308,11.73,143.43,143.33,14.565]
[1727094808512,3.487,143.41,143.38,3.4876]
[1727094809516,14.5775,143.45,143.35,11.73]
[1727094810016,14.5775,143.45,143.4,3.4871]
[1727094811216,3.4864,143.44,143.4,3.4871]
[1727094812219,3.4865,143.43,143.4,3.4871]
[1727094812718,3.4868,143.42,143.39,3.4874]
[1727094813721,3.487,143.41,143.38,3.4876]
[1727094815613,3.4869,143.42,143.38,3.4876]
[1727094816215,3.4869,143.42,143.39,3.4875]
[1727094819520,11.73,143.43,143.34,13.0792]
[1727094819820,11.73,143.41,143.33,2.835]
[1727094820025,3.53974359,143.4,143.33,2.835]
[1727094820427,7.02714359,143.4,143.37,3.488]
[1727094821229,3.4877,143.39,143.33,2.835]
[1727094821724,3.4877,143.39,143.36,3.488]
[1727094821928,3.4877,143.39,143.33,2.835]
[1727094822825,3.4877,143.39,143.37,3.4879]
[1727094825128,3.4874,143.4,143.37,3.4879]
[1727094827326,15.2171,143.41,143.38,3.4876]
[1727094828424,7.51,143.4,143.38,3.4876]
[1727094828724,7.51,143.4,143.35,7.51]
[1727094829127,10.9974,143.4,143.37,3.4877]
[1727094830232,10.9974,143.4,143.38,3.4877]
[1727094831522,7.51,143.41,143.37,7.51]
[1727094832430,7.51,143.41,143.39,3.4874]
[1727094833725,10.997,143.41,143.39,3.4874]
[1727094834330,10.997,143.41,143.38,3.4876]
[1727094835730,11.03264344,143.4,143.33,4.1847]
[1727094835930,10.9976,143.39,143.36,3.4881]
[1727094836123,10.9976,143.39,143.33,10.345]
[1727094836532,14.44652146,143.39,143.33,10.345]
[1727094837033,14.44652146,143.39,143.36,3.4881]
[1727094839124,10.9976,143.39,143.36,3.4881]
[1727094839323,7.51,143.39,143.37,3.4879]
[1727094839630,14.47109369,143.4,143.37,3.4879]
[1727094839833,10.98369369,143.4,143.37,3.4879]
[1727094840030,14.47099369,143.4,143.37,3.4879]
[1727094841236,7.51,143.39,143.33,2.835]
[1727094841435,7.51,143.34,143.24,87.18865177]
[1727094841629,7.51,143.34,143.26,2.8646]
[1727094841831,7.51,143.32,143.3,3.4895]
[1727094842932,7.51,143.32,143.31,3.4894]
[1727094844234,10.9993,143.32,143.26,2.8646]
[1727094844438,7.51,143.31,143.29,3.4898]
[1727094844838,10.9996,143.31,143.28,3.4901]
[1727094845042,7.51,143.3,143.26,2.8646]
[1727094845240,7.51,143.29,143.24,7.51]
[1727094845537,7.51,143.29,143.26,3.4905]
[1727094845538,10.9999,143.29,143.26,3.4905]
[1727094845838,7.51,143.29,143.24,7.51]
[1727094846043,7.51,143.29,143.26,3.4904]
[1727094846540,7.51,143.29,143.27,3.4902]
[1727094846742,7.51,143.32,143.26,7.51]
[1727094847346,7.51,143.32,143.28,3.4899]
[1727094847347,10.9992,143.32,143.28,3.4899]
[1727094847942,10.9992,143.32,143.29,3.4899]
[1727094849943,7.51,143.32,143.29,3.4899]
[1727094850841,10.9992,143.32,143.29,3.4899]
[1727094851751,7.51,143.3,143.28,3.4899]
[1727094851948,7.51,143.29,143.23,7.51]
[1727094853244,7.51,143.29,143.27,3.4902]
[1727094855351,7.51,143.28,143.27,3.4902]
[1727094856142,7.51,143.28,143.19,84.30754048]
[1727094856343,7.51,143.22,143.19,2.78]
[1727094856951,7.51,143.24,143.21,3.4919]
[1727094857351,7.51,143.24,143.19,10.29]
[1727094857748,6.99764415,143.26,143.22,3.4914]
[1727094857950,7.51,143.24,143.22,3.4914]
[1727094858143,7.51,143.24,143.19,10.29]
[1727094858358,7.51,143.25,143.2,7.51]
[1727094858546,7.51,143.26,143.21,7.51]
[1727094859356,7.51,143.27,143.21,7.51]
[1727094860349,18.64769734,143.28,143.24,3.491]
[1727094863955,18.64769734,143.28,143.25,3.4908]
[1727094864348,18.64769734,143.28,143.19,14.51]
[1727094864544,18.64769734,143.28,143.24,3.491]
[1727094865848,15.15749734,143.28,143.19,14.51]
[1727094866252,11.73,143.28,143.19,14.51]
[1727094866953,11.73,143.28,143.26,3.4904]
[1727094869258,1.4205,143.29,143.21,11.73]
[1727094869459,11.73,143.3,143.21,11.73]
[1727094870665,15.2197,143.3,143.27,3.4902]
[1727094870864,15.2197,143.3,143.21,11.73]
[1727094870865,11.73,143.3,143.21,11.73]
[1727094871059,15.14713056,143.3,143.21,11.73]
[1727094871557,3.4899,143.29,143.26,3.4904]
[1727094871954,11.73,143.28,143.2,6.984]
[1727094872166,11.73,143.28,143.25,3.4908]
[1727094872860,15.2203,143.28,143.25,3.4908]
[1727094876268,11.73,143.28,143.2,6.984]
[1727094876970,11.73,143.28,143.25,3.4906]
[1727094877572,11.73,143.28,143.26,3.4906]
[1727094877867,15.2202,143.28,143.26,3.4906]
[1727094880458,7.51,143.27,143.26,3.4906]
[1727094881465,7.51,143.29,143.24,7.51]
[1727094881669,7.51,143.29,143.25,7.51]
[1727094881971,7.51,143.3,143.29,3.4899]
[1727094882967,7.51,143.32,143.27,7.51]
[1727094883366,7.51,143.32,143.31,3.4892]
[1727094884572,7.51,143.32,143.31,3.4894]
[1727094885070,7.51,143.33,143.29,7.51]
[1727094886872,7.51,143.33,143.32,3.4892]
[1727094887269,7.51,143.35,143.34,3.4887]
[1727094887671,6.93218571,143.38,143.31,7.51]
[1727094887872,7.51,143.37,143.31,7.51]
[1727094888172,7.51,143.37,143.32,7.51]
[1727094888767,7.51,143.37,143.31,7.51]
[1727094889163,7.51,143.37,143.35,3.4883]
[1727094889565,7.51,143.36,143.31,7.51]
[1727094889774,7.51,143.36,143.34,3.4884]
[1727094890172,7.51,143.37,143.31,7.51]
[1727094890570,7.51,143.37,143.36,3.4881]
[1727094890971,7.51,143.37,143.31,7.51]
[1727094891182,7.51,143.37,143.35,3.4883]
[1727094892776,7.51,143.36,143.3,7.51]
[1727094892978,7.51,143.34,143.3,7.51]
[1727094893975,7.51,143.34,143.33,3.4888]
[1727094898676,7.51,143.36,143.35,3.4883]
[1727094900183,7.51,143.36,143.34,3.4886]
[1727094900483,7.51,143.35,143.3,7.51]
[1727094900780,7.51,143.35,143.34,3.4887]
[1727094902180,1.4434,143.38,143.31,7.51]
[1727094902490,7.51,143.37,143.32,7.51]
[1727094903185,7.51,143.36,143.31,7.51]
[1727094903777,7.51,143.36,143.32,3.489]
[1727094904080,7.51,143.36,143.31,7.51]
[1727094905887,7.51,143.36,143.35,3.4884]
[1727094906078,7.51,143.36,143.31,7.51]
[1727094906279,7.51,143.35,143.3,8.96]
[1727094906479,7.51,143.33,143.28,7.51]
[1727094906976,7.51,143.33,143.32,3.489]
[1727094908983,7.51,143.34,143.33,3.4888]
[1727094909582,2.8915,143.38,143.35,3.4884]
[1727094909785,7.51,143.37,143.33,7.51]
[1727094909981,1.4373,143.43,143.39,3.4874]
[1727094910177,1.4373,143.43,143.36,7.51]
[1727094910178,7.51,143.41,143.36,7.51]
[1727094910583,7.51,143.41,143.4,3.4872]
[1727094910784,7.51,143.41,143.36,7.51]
[1727094912289,7.51,143.41,143.39,3.4873]
[1727094913190,7.51,143.41,143.33,4.2022]
[1727094913191,7.51,143.42,143.38,7.51]
[1727094913886,7.51,143.43,143.41,3.4868]
[1727094914091,7.51,143.43,143.38,7.51]
[1727094915092,7.51,143.43,143.41,3.4868]
[1727094916183,7.51,143.42,143.38,7.51]
[1727094916383,2.8443,143.46,143.33,4.2022]
[1727094916384,7.51,143.41,143.35,7.51]
[1727094916785,7.51,143.4,143.35,7.51]
[1727094916985,7.51,143.38,143.34,7.51]
[1727094917386,10.9977,143.38,143.36,3.4881]
[1727094917583,7.51,143.38,143.36,3.4881]
[1727094917787,7.51,143.38,143.34,7.51]
[1727094918694,10.9973,143.4,143.37,3.488]
[1727094921491,7.51,143.38,143.36,3.4881]
[1727094921688,7.51,143.38,143.33,10.3309]
[1727094922089,7.51,143.37,143.33,7.51]
[1727094922294,7.51,143.37,143.31,7.51]
[1727094922484,7.51,143.36,143.31,7.51]
[1727094922987,3.41322245,143.38,143.29,2.9253]
[1727094922988,7.51,143.37,143.32,7.51]
[1727094924885,7.51,143.37,143.36,3.4882]
[1727094925290,12.4034,143.39,143.37,3.4878]
[1727094925901,10.9976,143.39,143.37,3.4878]
[1727094928295,7.51,143.39,143.37,3.4878]
[1727094930390,10.9975,143.39,143.36,3.4881]
[1727094930897,7.51,143.37,143.29,2.9253]